Cogmind - Beta 13 @@@ ROGUE MODE // 2024.04.25 @ 20:17:22 Player: monkeman Result: Destroyed by PD-Q8G(R) with Subdweller Beam Cannon Performance ------------- Evolutions (0) 0 Regions Visited (2) 400 Robots Destroyed (27) 135 Value Destroyed (788) 788 Prototype IDs (2) 40 Alien Tech Used (0) 0 Bonus (0) 0 TOTAL SCORE: 1363 Bonus ------- None Cogmind --------- Core Integrity 0/250 Matter 66/300 Energy 200/200 System Corruption 0% Temperature Cool (15) Movement Rolling (130) Ox2 Location -10/Subcaves Parts ------- > --- POWER (1) -------- Subdweller Power Source > --- PROPULSION (2) --- Subdweller Monowheel > --- UTILITY (2) ------ High-capacity Storage Unit Improved Targeting Computer > --- WEAPON (2) ------- Mini Grenade Launcher > --- INVENTORY (20) --- Subdweller Power Source Wheel Heat Sink Subdweller Optics Improved Terrain Scanner Seismic Detector Subdweller Machine Gun Improved Light Cannon Mini Grenade Launcher Mining Laser Peak State ------------ > --- POWER ------------ Subdweller Power Source > --- PROPULSION ------- Subdweller Monowheel Subdweller Monowheel > --- UTILITY ---------- High-capacity Storage Unit Improved Targeting Computer > --- WEAPON ----------- Improved Light Cannon Slug Cannon > --- INVENTORY -------- Wheel Heat Sink Improved Terrain Scanner Seismic Detector Subdweller Machine Gun Improved Light Cannon Mini Grenade Launcher Mini Grenade Launcher Mining Laser [Rating: 16] Favorites ----------- Power Ion Engine Engine Ion Engine Propulsion Light Treads Treads Light Treads Wheel Subdweller Monowheel Utility Improved Terrain Scanner Device Improved Terrain Scanner Storage Small Storage Unit Processor Improved Targeting Computer Weapon Improved Light Cannon Energy Gun Medium Laser Ballistic Cannon Improved Light Cannon Launcher Mini Grenade Launcher Build | -11 -10 -10 ------- Run | Yrd Mat Sub Slots Evolved . | . . . Power . | . . . Propulsion . | . . . Utility . | . . . Weapon . | . . . Parts Attached 25 | 6 8 11 Power 4 | . 3 1 Engine 4 | . 3 1 Core . | . . . Reactor . | . . . Propulsion 5 | 2 . 3 Treads 2 | 2 . . Leg . | . . . Wheel 3 | . . 3 Hover . | . . . Flight . | . . . Utility 5 | 2 1 2 Device 2 | 1 . 1 Storage 2 | 1 1 . Processor 1 | . . 1 Hackware . | . . . Protection . | . . . Artifact . | . . . Weapon 11 | 2 4 5 Energy Gun 2 | 2 . . Energy Cannon . | . . . Ballistic Gun . | . . . Ballistic Cannon 6 | . 3 3 Launcher 3 | . 1 2 Special Weapon . | . . . Impact Weapon . | . . . Slashing Weapon . | . . . Piercing Weapon . | . . . Special Melee Weapon . | . . . Unidentified Prototypes . | . . . Parts Lost 11 | . 1 10 Power 2 | . 1 1 Propulsion 4 | . . 4 Utility 1 | . . 1 Weapon 4 | . . 4 Highest Loss Streak 4 | . 1 4 To Critical Strikes . | . . . Average Slot Usage (%) 98 | . 99 97 Engine 13 | . 13 13 Treads 25 | . 28 15 Wheel 2 | . . 10 Device 12 | . 14 8 Storage 14 | . 14 14 Processor 1 | . . 4 Ballistic Cannon 27 | . 27 27 Naked Turns . | . . . Heaviest Build 56 | 10 54 56 Greatest Support 40 | 40 40 40 Greatest Overweight (x) 2 | . 1 2 Average Overweight (x) . | . . 1 Largest Inventory Capacity 20 | 8 20 20 Average Capacity 12 | 7 10 20 Most Carried 14 | 6 12 14 Average Carried 8 | 3 8 11 Final Capacity 20 | 8 20 20 Final Carried 12 | 6 12 10 Class Distribution -------------------- 100% | Mutant Dominant Class ---------------- Mutant | -10/Materials Mutant | -10/Subcaves Resources | -11 -10 -10 ----------- Run | Yrd Mat Sub Matter Collected 709 | 260 311 138 Remotely . | . . . Salvage Created 579 | 84 383 112 Parts 39 | 6 23 10 Haulers Intercepted . | . . . Recyclers Shooed . | . . . Parts Field Recycled . | . . . Retrieved Matter . | . . . Parts Self-Destructed 4 | . . 4 Prevented . | . . . Kills | -11 -10 -10 ------- Run | Yrd Mat Sub Combat Hostiles Destroyed 23 | . 13 10 Cannons 16 | . 10 6 AOE 7 | . 3 4 Classes Destroyed 7 | 2 4 1 Tunneler 1 | 1 . . Recycler 2 | 1 1 . Watcher 1 | . 1 . Swarmer 7 | . 3 4 Grunt 8 | . 8 . Sentry 1 | . . 1 Subdweller 7 | . 2 5 Best Kill Streak 5 | 1 5 5 Combat Bots Only 5 | . 4 5 Max Kills in Single Turn 3 | 1 2 3 Gunslinging . | . . . Exploded 3 | . 2 3 Melee . | . . . Uniques/NPCs Destroyed . | . . . Combat | -11 -10 -10 -------- Run | Yrd Mat Sub Hostile Shots Fired 117 | . 31 86 Missed 27 | . 5 22 Damage Taken 1459 | . 365 1094 Core 255 | . 61 194 Absorbed by Shields . | . . . Core Remaining (%) 100 | 100 . . Volleys Fired 66 | 6 29 31 Largest 2 | 2 2 2 Hottest 90 | 90 78 87 Shots Fired 128 | 12 56 60 Gun 12 | 12 . . Cannon 109 | . 54 55 Launcher 7 | . 2 5 Special . | . . . Kinetic 109 | . 54 55 Thermal 6 | 6 . . Explosive 7 | . 2 5 Electromagnetic 6 | 6 . . Robot Hit Streak 10 | 4 10 10 Robot Miss Streak 2 | 2 2 2 Penetration Max . | . . . Secondary Targets . | . . . Shots Hit Robots 88 | 8 38 42 Core Hits 38 | 3 19 16 Critical Kills 1 | . . 1 Critical Parts Destroyed . | . . . Critical Strikes 8 | . 4 4 Destroy 4 | . . 4 Blast 4 | . 4 . Melee Attacks . | . . . Impact . | . . . Slashing . | . . . Piercing . | . . . Sneak Attacks . | . . . Combat Hostiles . | . . . Follow-up Attacks . | . . . Damage Inflicted 2498 | 107 1002 1389 Guns 107 | 107 . . Cannons 1699 | . 819 880 Explosions 692 | . 183 509 Melee . | . . . Ramming . | . . . Kinetic 1699 | . 819 880 Thermal 121 | 50 71 . Explosive 621 | . 112 509 Electromagnetic 57 | 57 . . Impact . | . . . Slashing . | . . . Piercing . | . . . Highest Corruption . | . . . Average Corruption . | . . . Corruption Purged . | . . . Corruption Blocked . | . . . Overload Shots . | . . . Overflow Damage 7 | . 7 . Projectiles 7 | . 7 . Explosions . | . . . Melee . | . . . Knockbacks 15 | . 9 6 Impact . | . . . Kinetic 15 | . 9 6 Secondary . | . . . Self-Inflicted Damage . | . . . Shots . | . . . Rammed . | . . . Targets Rammed . | . . . Kicked . | . . . Crushed . | . . . Highest Temperature 144 | 45 144 13 Average Temperature 43 | 19 48 7 Received Heat Transfer 396 | . 108 288 Siege Activations . | . . . Robots Corrupted . | . . . Combat Hostiles . | . . . Parts Fried 2 | 2 . . Impact Corruptions . | . . . Robots Melted . | . . . Combat Hostiles . | . . . Parts Melted 1 | 1 . . Heat Transferred 198 | 148 50 . Parts Sabotaged . | . . . Parts Stolen . | . . . Parts Stripped . | . . . Power Chain Reactions . | . . . Alert | -11 -10 -10 ------- Run | Yrd Mat Sub Peak Influence 273 | 10 273 . Initial 6 | . 6 . Average 101 | 4 111 . Maximum Alert Level 1 | . 1 . Low Security (%) 88 | 100 87 . Level 1 11 | . 12 . Level 2 . | . . . Level 3 . | . . . Level 4 . | . . . Level 5 . | . . . High Security . | . . . Max Security . | . . . Squads Dispatched 2 | . 2 . Investigation 1 | . 1 . Extermination . | . . . Reinforcement 1 | . 1 . Assault . | . . . Garrison . | . . . Intercept . | . . . Searches Triggered . | . . . Construction Impeded . | . . . Haulers Reinforced . | . . . Active Scanning Responses . | . . . Cargo Convoy Interrupts . | . . . Stealth | -11 -10 -10 --------- Run | Yrd Mat Sub Distress Signals 1 | . 1 . Communications Jammed . | . . . Distress Signals . | . . . Times Spotted 45 | . 18 27 Peak Tracking Total 6 | . 4 6 Tactical Retreats 2 | . 1 1 Traps | -11 -10 -10 ------- Run | Yrd Mat Sub Traps Triggered 1 | . 1 . Indirectly . | . . . Trap Hack Attempts . | . . . Triggered . | . . . Disarmed . | . . . Reprogrammed . | . . . Reused . | . . . Traps Extracted . | . . . Installed . | . . . Triggered . | . . . Machines | -11 -10 -10 ---------- Run | Yrd Mat Sub Machines Disabled 7 | . 6 1 Max in Single Turn 4 | . 4 1 Machines Repaired . | . . . Machines Dismantled . | . . . Machines Sabotaged . | . . . Overloaded Fab Kills . | . . . Hacking | -11 -10 -10 --------- Run | Yrd Mat Sub Machines Accessed 6 | . 6 . Terminals 6 | . 6 . Fabricators . | . . . Repair Stations . | . . . Recycling Units . | . . . Scanalyzers . | . . . Garrison Access . | . . . Total Hacks 15 | . 15 . Successful 8 | . 8 . Failed 7 | . 7 . Catastrophic 2 | . 2 . Database Lockouts . | . . . Manual 9 | . 9 . Terminals 15 | . 15 . Fabricators . | . . . Repair Stations . | . . . Recycling Units . | . . . Scanalyzers . | . . . Garrison Access . | . . . Terminal Hacks 8 | . 8 . Part Schematic 1 | . 1 . Robot Analysis 4 | . 4 . Prototype ID Bank 1 | . 1 . Terminal Index 1 | . 1 . Zone Layout 1 | . 1 . Fabricator Hacks . | . . . Repair Station Hacks . | . . . Recycling Unit Hacks . | . . . Scanalyzer . | . . . Garrison Access Hacks . | . . . Unauthorized Hacks . | . . . Terminals . | . . . Fabricators . | . . . Repair Stations . | . . . Recycling Units . | . . . Scanalyzers . | . . . Garrison Access . | . . . Data Cores Recovered . | . . . Used . | . . . Hacking Detections 6 | . 6 . Full Trace Events . | . . . Feedback Events . | . . . Feedback Blocked . | . . . Robot Schematics Acquired . | . . . Robots Built . | . . . Authchips . | . . . Time . | . . . Total Robot Build Rating . | . . . Part Schematics Acquired 1 | . 1 . Parts Built . | . . . Authchips . | . . . Time . | . . . Total Part Build Rating . | . . . Parts Repaired . | . . . Time . | . . . Parts Recycled . | . . . Recycled Matter . | . . . Retrieved Matter . | . . . Retrieved Components . | . . . Parts Scanalyzed . | . . . Part Schematics Acquired . | . . . Parts Damaged . | . . . Bothacking | -11 -10 -10 ------------ Run | Yrd Mat Sub Used RIF Installer . | . . . Robots Hacked . | . . . Non-combat . | . . . Combat . | . . . Robot Hacks Applied . | . . . Relay Couplers Released . | . . . Fabnet Peak Effective % . | . . . Robots Rewired . | . . . Allies Hacked . | . . . Hacks Repelled . | . . . Allies | -11 -10 -10 -------- Run | Yrd Mat Sub Total Allies . | . . . Largest Group . | . . . Highest-Rated Group . | . . . Highest-Rated Ally . | . . . Total Orders . | . . . Ally Attacks . | . . . Total Damage . | . . . Kills . | . . . Allies Corrupted . | . . . Allies Melted . | . . . Intel | -11 -10 -10 ------- Run | Yrd Mat Sub Robot Analysis Total 4 | . 4 . Derelict Logs Recovered . | . . . Drone Launches . | . . . Drone Recoveries . | . . . Exploration | -11 -10 -10 ------------- Run | Yrd Mat Sub Turns Passed 1724 | 126 1207 391 Spaces Moved 824 | 63 618 143 Core 6 | 6 . . Treads 760 | 57 618 85 Legs . | . . . Wheels 58 | . . 58 Hover . | . . . Flight . | . . . Fastest Speed 50 | 50 160 107 Average Speed 175 | 149 174 191 Slowest Speed 240 | 160 240 240 Overloaded Moves . | . . . Propulsion Burnouts . | . . . Robots Hopped . | . . . Cave-ins Triggered . | . . . Exploration Rate (%) 29 | 5 68 14 Regions Visited 2 Branch Regions 1 Pre-discovered Areas . | . . . Known Exits Taken . | . . . Unknown Exits Taken 2 | 1 1 . Scrap Searched 1 | . . 1 Spaces Dug . | . . . Terrain Destroyed 92 | . 45 47 Melee . | . . . Projectile 10 | . 1 9 AOE 82 | . 44 38 Terrain Rammed . | . . . Walls Destroyed . | . . . Machines Disabled . | . . . Actions | -11 -10 -10 --------- Run | Yrd Mat Sub Total 970 | 80 693 197 Wait 28 | . 20 8 Move 822 | 62 617 143 Hop . | . . . Pick Up 22 | 6 12 4 Fast Attach 9 | 6 1 2 Attach 9 | . 3 6 Detach . | . . . Swap 7 | . 4 3 Drop 7 | . 7 . Fire 66 | 6 29 31 Melee . | . . . Ram . | . . . Kick . | . . . Crush . | . . . Escape Stasis . | . . . Rewire . | . . . Trap . | . . . Miscellaneous . | . . . Route ------- -11/Scrapyard -10/Materials (discovered 4 exits: [*Mat] / [*Min x2] / [*Sub]) -10/Subcaves (discovered 1 exit: [*Mat]) History --------- Turn | Location | Event 8 | -11/Scrapyard | Discovered new exit (range 14) 127 | -11/Scrapyard | Entered Materials 311 | -10/Materials | Build established: Mutant 406 | -10/Materials | Discovered new exit (range 15) 627 | -10/Materials | Derelicts attacked the area 700 | -10/Materials | Discovered new exit (range 16) 843 | -10/Materials | Discovered new exit (range 8) 1276 | -10/Materials | Discovered new exit (range 9) 1334 | -10/Materials | Entered Subcaves 1576 | -10/Subcaves | Core integrity fell below 50% 1615 | -10/Subcaves | Lost 4 parts (1p2n1w) 1691 | -10/Subcaves | Discovered new exit (range 7) 1704 | -10/Subcaves | A Subdweller sparked back to life 1704 | -10/Subcaves | A Subdweller sparked back to life 1718 | -10/Subcaves | Core integrity fell below 20% 1725 | -10/Subcaves | Destroyed by PD-Q8G(R) with Subdweller Beam Cannon Last Messages --------------- 01652_ Acquired 7 matter. 01655_ Acquired 5 matter. 01658_ Acquired 4 matter. 01660_ Subatomizers dissect the Sub. Optics. 01660_ Acquired Sub. Power Source. 01662_ Acquired Sub. Optics. 01670_ Subatomizers dissect the Disposable Heat Sink. 01672_ Acquired 2 matter. 01676_ Acquired 6 matter. 01691_ EXIT=FOUND 01700_ J2-XPB(R) knocked back. 01703_ J2-XPB(R) destroyed. 01704_ PD-Q8G(R) creaks and sparks as it begins to move. 01704_ BM-S3Y(R) creaks and sparks as it begins to move. 01715_ Slug Cannon destroyed. 01719_ Sub. Monowheel destroyed. 01725_ Imp. Light Cannon destroyed. Map ----- +----------------------------------------------------+ | ?????????????????????????????????????????????????? | | ?????????????????????????????????????????????????? | | ?????????????????????????????????????????????????? | | ?????????????????????????????????????????????????? | | ?????????????????????????????????????????????????? | | ?????????????????????????????????????????????????? | | ?????????????????????????????????????????????????? | | ?????????????????????????????????????????????????? | | ?????????????????????????????????????????????????? | | ?????????????????????????????????????????????????? | | ????????????????????????????????????????????????? | | ??????????????????????????????????????????????? | | ??????????????????????????????????????????????? | | ??????????????????????????????????????????????? | | ???????????????????????????????????????????????? | | #???????????????????????????????????????????????? | | #??####???????####??????????????????????????????? | | #### ##?????##% "?????????????????????????????? | | ## ##????# & "??????????######?? ??????????? | | ##???? ????????## ;## ?????????? | | #????#< ???????#; %& #?????????? | | ##???# < #######; & ?????????? | | ###??# ## #????????? | | # "#???# < #??????????? | | # ##??# R % #????????????? | | " ##?# % @ [ ; #?????????????? | | # ### ;;#??????????????? | | R ;;;;##??????????????? | | % R #####???????????????? | | " #?????????????? | | ##### #?????????????? | | # " #??# # ;; #?????????????? | | ## "" ###??# ## ;##### ##?????????????? | | ?# # ##????#####?? ###???? #??????????????? | | ?# #####???????????###???????? #??????????????? | | # ####??????????????????????? #??????????????? | | "#???????????????????????? ##??????????????? | | ##?????????????????????????? #???????????????? | | #??#?????????????????????????"???????????????? | | ###????????????????????????????????????????????? | | "##??????????????????????????????????????????????? | | " #??????????????????????????????????????????????? | | ?" ??? ?????????????????????????????????????????? | | ?##?"???????????????????????????????????????????? | | ?????? ??????????????????????????????????????????? | | ????????????????????????????????????????????????? | | ?????????????????????????????????????????????????? | | ???#?????????????????????????????????????????????? | | ?????????????????????????????????????????????????? | | ?????????????????????????????????????????????????? | +----------------------------------------------------+ Best States ------------- Heat Dissipation 25 Energy Generation 15 Energy Capacity 250 Matter Stores 300 Matter Capacity 300 Sight Range 16 Terrain Scan Range 16 Terrain Scan Density 10 Evasion (%) 40 Targeting Accuracy 6 Recoil Reduction 2 Item Schematics ----------------- Huge Storage Unit | -10/Materials | Hacked Robot Schematics ------------------ None Fabricated ------------ Nothing Alien Tech Used ----------------- None Achievements -------------- None Challenges ------------ None Game ------ Seed NovaDimensionalNullifier Manual? 0 Play Time 00:12:33 Cumulative 45.9 hours Start 2024.04.25 @ 20:07:42 End 2024.04.25 @ 20:17:22 Sessions 1 Manual Loads 0 Difficulty Rogue Special Mode None Game No. 61 Rogue 61 Adventurer 0 Explorer 0 Win Type - Total 1 Types 1/0/0/0/0/0/0/0/0 Lore% 27 Gallery% 42 Achievement% 31 Wizard Run 0 Options --------- Layout 1 ASCII 0 Keyboard 0 Movement Mouse Keybinds 0 Fullscreen 1 Font 24/Smallcaps Map View 50x35 Zoom Use 0% Tactical HUD 1 Map Filters NONE Filters NONE Steam 1 RUN: 52a3ac34-9ef0-47a5-a3ce-a95b93f97117